lending/lending_fUSD_20260110
["ID","MTS","AMOUNT","RATE_DAILY","PERIOD"]
[401189363,1768031444994,-170.88856341,0.00017073,2]
[401189364,1768031445004,-150.0,0.00017077,2]
[401189365,1768031445013,-150.0,0.0001708,2]
[401189366,1768031445023,-150.0,0.0001708,2]
[401189367,1768031445033,-510.74252443,0.00017089,2]
[401189368,1768031445043,-150.0,0.0001709,2]
[401189369,1768031445053,-190.53827758,0.00017091,2]
[401189370,1768031445063,-196.55099073,0.00017091,2]
[401189371,1768031445073,-161.3110552,0.00017091,2]
[401189372,1768031445084,-170.88856341,0.00017091,2]
[401189373,1768031445093,-500.0,0.00017098,2]
[401189374,1768031445103,-151.0,0.00017099,2]
[401189375,1768031445112,-500.0,0.00017099,2]
[401189376,1768031445122,-151.0,0.00017099,2]
[401189377,1768031445131,-623.58710448,0.00017099,2]
[401189378,1768031445140,-250.0,0.00017099,2]
[401189379,1768031445151,-1000.0,0.00017099,2]
[401189380,1768031445160,-500.0,0.00017099,2]
[401189381,1768031445170,-8260.13072239,0.00017099,2]
[401189382,1768031445179,-250.0,0.00017099,2]
[401189383,1768031445189,-500.0,0.00017099,2]
[401189384,1768031445198,-250.0,0.00017099,2]
[401189385,1768031445207,-500.0,0.00017099,2]
[401189386,1768031445217,-1000.0,0.00017099,2]
[401189387,1768031445227,-250.0,0.00017099,2]
[401189388,1768031445236,-267.33747462,0.00017099,2]
[401189389,1768031445246,-500.0,0.00017099,2]
[401189390,1768031445256,-1000.0,0.00017099,2]
[401189391,1768031445267,-500.0,0.00017099,2]
[401189392,1768031445277,-262.27490419,0.00017099,2]
[401189393,1768031445287,-500.0,0.00017099,2]
[401189394,1768031445297,-500.0,0.00017099,2]
[401189395,1768031445307,-1000.0,0.00017099,2]
[401189396,1768031445317,-500.0,0.00017099,2]
[401189397,1768031445327,-1000.0,0.00017099,2]
[401189398,1768031445337,-500.0,0.00017099,2]
[401189399,1768031445346,-500.0,0.00017099,2]
[401189400,1768031445356,-1000.0,0.00017099,2]
[401189401,1768031445367,-500.0,0.00017099,2]
[401189402,1768031445376,-500.0,0.00017099,2]
[401189403,1768031445385,-1000.0,0.00017099,2]
[401189404,1768031445396,-500.0,0.00017099,2]
[401189405,1768031445406,-500.0,0.00017099,2]
[401189406,1768031445416,-1000.0,0.00017099,2]
[401189407,1768031445425,-500.0,0.00017099,2]
[401189408,1768031445435,-500.0,0.00017099,2]
[401189409,1768031445444,-1000.0,0.00017099,2]
[401189410,1768031445454,-500.0,0.00017099,2]
[401189411,1768031445464,-500.0,0.00017099,2]
[401189412,1768031445474,-1000.0,0.00017099,2]
[401189413,1768031445484,-500.0,0.00017099,2]
[401189414,1768031445494,-322.6107,0.00017099,2]
[401189415,1768031445504,-500.0,0.00017099,2]
[401189416,1768031445516,-1000.0,0.00017099,2]
[401189417,1768031445526,-500.0,0.00017099,2]
[401189418,1768031445535,-500.0,0.00017099,2]
[401189419,1768031445545,-1000.0,0.00017099,2]
[401189420,1768031445555,-500.0,0.00017099,2]
[401189421,1768031445565,-181.08010149,0.00017099,2]
[401189422,1768031445575,-1000.0,0.00017099,2]
[401189423,1768031445586,-500.0,0.00017099,2]
[401189424,1768031445596,-500.0,0.00017099,2]
[401189425,1768031445606,-250.0,0.00017099,2]
[401189426,1768031445616,-500.0,0.00017099,2]
[401189427,1768031445626,-500.0,0.00017099,2]
[401189428,1768031445635,-250.0,0.00017099,2]
[401189429,1768031445645,-1000.0,0.00017099,2]
[401189430,1768031445655,-500.0,0.00017099,2]
[401189431,1768031445665,-265.93998841,0.00017099,2]
[401189432,1768031445675,-1000.0,0.00017099,2]
[401189433,1768031445685,-500.0,0.00017099,2]
[401189434,1768031445695,-151.0,0.00017099,2]
[401189435,1768031445705,-151.0,0.00017099,2]
[401189436,1768031445714,-157.48868544,0.00017099,2]
[401189437,1768031445723,-181.08010149,0.00017099,2]
[401189438,1768031445734,-496.47127164,0.00017099,2]
[401189439,1768031445744,-250.0,0.00017099,2]
[401189440,1768031445754,-290.47234924,0.00017099,2]
[401189441,1768031445763,-250.0,0.00017099,2]
[401189442,1768031445774,-250.0,0.00017099,2]
[401189443,1768031445785,-250.0,0.00017099,2]
[401189444,1768031445794,-268.55828979,0.00017099,2]
[401189445,1768031445804,-250.0,0.00017099,2]
[401189446,1768031445813,-250.0,0.00017099,2]
[401189447,1768031445823,-250.0,0.00017099,2]
[401189448,1768031445833,-250.0,0.00017099,2]
[401189449,1768031445843,-250.0,0.00017099,2]
[401189450,1768031445853,-250.0,0.00017099,2]
[401189451,1768031445863,-250.0,0.00017099,2]
[401189452,1768031445872,-250.0,0.00017099,2]
[401189453,1768031445882,-250.0,0.00017099,2]
[401189454,1768031445892,-250.0,0.00017099,2]
[401189455,1768031445902,-250.0,0.00017099,2]
[401189456,1768031445911,-2000.0,0.00017099,2]
[401189458,1768031445921,-998.0,0.00017099,2]
[401189459,1768031445930,-250.0,0.00017099,2]
[401189460,1768031445940,-250.0,0.00017099,2]
[401189461,1768031445949,-2000.0,0.00017099,2]
[401189462,1768031445958,-262.0209475,0.00017099,2]
[401189463,1768031445967,-250.0,0.00017099,2]
[401189464,1768031445977,-2000.0,0.00017099,2]
[401189465,1768031445986,-250.0,0.00017099,2]
[401189466,1768031445996,-2000.0,0.00017099,2]
[401189467,1768031446005,-2000.0,0.00017099,2]
[401189468,1768031446014,-2000.0,0.00017099,2]
[401189469,1768031446024,-2000.0,0.00017099,2]
[401189470,1768031446034,-2000.0,0.00017099,2]
[401189471,1768031446045,-2000.0,0.00017099,2]
[401189472,1768031446055,-2000.0,0.00017099,2]
[401189473,1768031446064,-2000.0,0.00017099,2]
[401189474,1768031446074,-525.94323817,0.00017099,2]
[401189475,1768031446085,-150.0,0.000171,2]
[401189476,1768031446094,-150.0,0.000171,2]
[401189477,1768031446104,-150.0,0.000171,2]
[401189478,1768031446114,-150.0,0.000171,2]
[401189479,1768031446124,-1069.8949683,0.000171,2]
[401189480,1768031446134,-190.53827758,0.00017109,2]
[401189481,1768031446144,-196.55099073,0.00017109,2]
[401189482,1768031446153,-161.3110552,0.00017109,2]
[401189483,1768031446163,-170.88856341,0.00017109,2]
[401189484,1768031446172,-150.0,0.0001711,2]
[401189485,1768031446182,-150.0,0.0001712,2]
[401189486,1768031446192,-150.0,0.0001712,2]
[401189487,1768031446201,-1712.34976734,0.00017122,2]
[401189489,1768031446211,-1908.19922497,0.00017122,2]
[401189491,1768031446221,-150.0,0.00017123,2]
[401189493,1768031446231,-190.53827758,0.00017127,2]
[401189495,1768031446241,-196.55099073,0.00017127,2]
[401189497,1768031446250,-161.3110552,0.00017127,2]
[401189499,1768031446260,-150.0,0.00017127,2]
[401189501,1768031446269,-170.88856341,0.00017127,2]
[401189502,1768031446279,-150.0,0.00017129,2]
[401189503,1768031446289,-150.0,0.00017141,2]
[401189504,1768031446300,-190.53827758,0.00017145,2]
[401189506,1768031446310,-196.55099073,0.00017145,2]
[401189508,1768031446320,-161.3110552,0.00017145,2]
[401189510,1768031446330,-170.88856341,0.00017145,2]
[401189513,1768031446339,-150.0,0.00017148,2]
[401189514,1768031446349,-8565.75555911,0.00017154,2]
[401189515,1768031446358,-150.0,0.0001716,2]
[401189516,1768031446368,-1000.0,0.00017161,2]
[401189517,1768031446378,-1000.0,0.00017161,2]
[401189518,1768031446388,-150.0,0.00017161,2]
[401189519,1768031446398,-190.53827758,0.00017164,2]
[401189520,1768031446408,-196.55099073,0.00017164,2]
[401189521,1768031446417,-161.3110552,0.00017164,2]
[401189522,1768031446427,-170.88856341,0.00017164,2]
[401189523,1768031446437,-393.0,0.00017167,2]
[401189524,1768031446447,-150.0,0.00017168,2]
[401189525,1768031446456,-150.0,0.00017169,2]
[401189526,1768031446466,-266.0,0.00017178,2]
[401189527,1768031446476,-179.19,0.00017178,2]
[401189528,1768031446485,-556.55,0.00017178,2]
[401189529,1768031446494,-171.45,0.00017178,2]
[401189530,1768031446504,-466.97,0.00017178,2]
[401189531,1768031446516,-556.55,0.00017178,2]
[401189532,1768031446526,-171.45,0.00017178,2]
[401189533,1768031446535,-179.19,0.00017178,2]
[401189534,1768031446546,-466.97,0.00017178,2]
[401189535,1768031446555,-179.19,0.00017178,2]
[401189536,1768031446565,-556.55,0.00017178,2]
[401189537,1768031446575,-171.45,0.00017178,2]
[401189538,1768031446587,-466.97,0.00017178,2]
[401189539,1768031446596,-466.97,0.00017178,2]
[401189540,1768031446607,-555.32,0.00017178,2]
[401189541,1768031446617,-179.19,0.00017178,2]
[401189542,1768031446627,-171.45,0.00017178,2]
[401189543,1768031446636,-171.45,0.00017178,2]
[401189544,1768031446646,-466.97,0.00017178,2]
[401189545,1768031446655,-466.97,0.00017178,2]
[401189546,1768031446665,-342.8,0.00017178,2]
[401189547,1768031446675,-466.97,0.00017178,2]
[401189548,1768031446684,-466.97,0.00017178,2]
[401189549,1768031446694,-466.97,0.00017178,2]
[401189550,1768031446704,-466.97,0.00017178,2]
[401189551,1768031446713,-466.97,0.00017178,2]
[401189552,1768031446723,-466.97,0.00017178,2]
[401189553,1768031446733,-466.97,0.00017178,2]
[401189554,1768031446743,-466.97,0.00017178,2]
[401189555,1768031446752,-466.97,0.00017178,2]
[401189556,1768031446762,-466.97,0.00017178,2]
[401189557,1768031446771,-466.97,0.00017178,2]
[401189558,1768031446781,-466.97,0.00017178,2]
[401189559,1768031446792,-933.68,0.00017178,2]
[401189560,1768031446803,-190.53827758,0.00017182,2]
[401189561,1768031446813,-196.55099073,0.00017182,2]
[401189562,1768031446823,-161.3110552,0.00017182,2]
[401189563,1768031446833,-150.0,0.00017182,2]
[401189564,1768031446842,-170.88856341,0.00017182,2]
[401189565,1768031446852,-150.0,0.00017182,2]
[401189566,1768031446862,-150.0,0.00017187,2]
[401189567,1768031446872,-150.0,0.0001719,2]
[401189568,1768031446882,-561.2,0.0001719,2]
[401189569,1768031446892,-190.53827758,0.000172,2]
[401189570,1768031446901,-196.55099073,0.000172,2]
[401189571,1768031446912,-161.3110552,0.000172,2]
[401189572,1768031446921,-170.88856341,0.000172,2]
[401189573,1768031446931,-150.0,0.000172,2]
[401189574,1768031446941,-150.0,0.00017202,2]
[401189575,1768031446950,-150.0,0.00017206,2]
[401189576,1768031446960,-8882.6885148,0.00017209,2]
[401189577,1768031446970,-150.0,0.00017215,2]
[401189578,1768031447049,-190.53827758,0.00017218,2]
[401189579,1768031447059,-196.55099073,0.00017218,2]
[401189580,1768031447068,-161.3110552,0.00017218,2]
[401189581,1768031447077,-170.88856341,0.00017218,2]
[401189582,1768031447087,-184.61083841,0.00017222,2]
[401189583,1768031447096,-151.0,0.00017222,2]
[401189584,1768031447106,-150.0,0.00017223,2]
[401189585,1768031447115,-150.0,0.00017226,2]
[401189586,1768031447124,-166.66,0.00017235,2]
[401189587,1768031447134,-190.53827758,0.00017236,2]
[401189588,1768031447143,-196.55099073,0.00017236,2]
[401189589,1768031447153,-161.3110552,0.00017236,2]
[401189590,1768031447162,-150.0,0.00017236,2]
[401189591,1768031447172,-170.88856341,0.00017236,2]
[401189592,1768031447181,-150.0,0.0001724,2]
[401189593,1768031447191,-150.0,0.00017243,2]
[401189594,1768031447200,-150.0,0.00017245,2]
[401189595,1768031447210,-190.53827758,0.00017255,2]
[401189596,1768031447220,-196.55099073,0.00017255,2]
[401189597,1768031447230,-161.3110552,0.00017255,2]
[401189598,1768031447239,-170.88856341,0.00017255,2]
[401189599,1768031447249,-150.0,0.00017262,2]
[401189600,1768031447258,-150.0,0.00017264,2]
[401189601,1768031447267,-561.2,0.00017264,2]
[401189602,1768031447277,-805.55508344,0.00017264,2]
[401189603,1768031447287,-150.0,0.00017265,2]
[401189604,1768031447297,-190.53827758,0.00017273,2]
[401189605,1768031447306,-196.55099073,0.00017273,2]
[401189606,1768031447316,-161.3110552,0.00017273,2]
[401189607,1768031447325,-170.88856341,0.00017273,2]
[401189608,1768031447334,-150.0,0.0001728,2]
[401189609,1768031447344,-150.0,0.0001728,2]
[401189610,1768031447353,-150.0,0.00017284,2]
[401189611,1768031447363,-150.0,0.00017284,2]
[401189612,1768031447372,-170.32473985,0.00017288,2]
[401189613,1768031447382,-190.53827758,0.00017291,2]
[401189614,1768031447392,-196.55099073,0.00017291,2]
[401189615,1768031447402,-161.3110552,0.00017291,2]
[401189616,1768031447411,-150.0,0.00017291,2]
[401189617,1768031447422,-170.88856341,0.00017291,2]
[401189618,1768031447433,-159.16121496,0.00017296,2]
[401189619,1768031447442,-150.0,0.00017303,2]
[401189620,1768031447452,-150.0,0.00017305,2]
[401189621,1768031447464,-150.0,0.00017308,2]
[401189622,1768031447474,-190.53827758,0.00017309,2]
[401189623,1768031447484,-196.55099073,0.00017309,2]
[401189624,1768031447494,-161.3110552,0.00017309,2]
[401189625,1768031447503,-170.88856341,0.00017309,2]
[401189626,1768031447516,-207.92,0.00017312,2]
[401189627,1768031447526,-1712.34976734,0.00017317,2]
[401189628,1768031447535,-1908.19922497,0.00017317,2]
[401189629,1768031447546,-150.0,0.0001732,2]
[401189630,1768031447556,-150.0,0.00017323,2]
[401189631,1768031447565,-150.0,0.00017325,2]
[401189632,1768031447575,-190.53827758,0.00017327,2]
[401189633,1768031447586,-196.55099073,0.00017327,2]
[401189634,1768031447596,-161.3110552,0.00017327,2]
[401189635,1768031447606,-170.88856341,0.00017327,2]
[401189636,1768031447614,-659.3281205,0.00017327,2]
[401189637,1768031447622,-561.2,0.00017337,2]
[401189638,1768031447632,-150.0,0.00017342,2]
[401189639,1768031447643,-190.53827758,0.00017345,2]
[401189640,1768031447654,-196.55099073,0.00017345,2]
[401189641,1768031447664,-161.3110552,0.00017345,2]
[401189642,1768031447675,-150.0,0.00017345,2]
[401189643,1768031447685,-170.88856341,0.00017345,2]
[401189644,1768031447695,-150.0,0.00017345,2]
[401189645,1768031447705,-150.0,0.00017354,2]
[401189646,1768031447714,-150.0,0.0001736,2]
[401189647,1768031447724,-150.0,0.00017361,2]
[401189648,1768031447734,-190.53827758,0.00017364,2]
[401189649,1768031447743,-196.55099073,0.00017364,2]
[401189650,1768031447753,-161.3110552,0.00017364,2]
[401189651,1768031447763,-170.88856341,0.00017364,2]
[401189652,1768031447773,-150.0,0.00017366,2]
[401189653,1768031447783,-150.0,0.0001737,2]
[401189654,1768031447792,-150.0,0.00017381,2]
[401189655,1768031447802,-190.53827758,0.00017382,2]
[401189656,1768031447812,-196.55099073,0.00017382,2]
[401189657,1768031447822,-161.3110552,0.00017382,2]
[401189658,1768031447831,-170.88856341,0.00017382,2]
[401189659,1768031447842,-150.0,0.00017386,2]
[401189660,1768031447851,-190.53827758,0.000174,2]
[401189661,1768031447861,-196.55099073,0.000174,2]
[401189662,1768031447871,-150.0,0.000174,2]
[401189663,1768031447880,-150.0,0.000174,2]
[401189664,1768031447891,-161.3110552,0.000174,2]
[401189665,1768031447901,-150.0,0.000174,2]
[401189666,1768031447910,-170.88856341,0.000174,2]
[401189667,1768031447920,-150.0,0.000174,2]
[401189668,1768031447930,-150.0,0.000174,2]
[401189669,1768031447939,-150.0,0.000174,2]
[401189670,1768031447949,-150.0,0.00017407,2]
[401189671,1768031447959,-561.2,0.00017411,2]
[401189672,1768031447969,-190.53827758,0.00017418,2]
[401189673,1768031447979,-196.55099073,0.00017418,2]
[401189674,1768031447988,-161.3110552,0.00017418,2]
[401189675,1768031447998,-170.88856341,0.00017418,2]
[401189676,1768031448007,-150.0,0.00017419,2]
[401189677,1768031448018,-150.0,0.00017427,2]
[401189678,1768031448027,-190.53827758,0.00017436,2]
[401189679,1768031448037,-196.55099073,0.00017436,2]
[401189680,1768031448047,-161.3110552,0.00017436,2]
[401189681,1768031448056,-170.88856341,0.00017436,2]
[401189682,1768031448066,-150.0,0.00017439,2]
[401189683,1768031448076,-150.0,0.0001744,2]
[401189684,1768031448085,-150.0,0.00017446,2]
[401189685,1768031448095,-150.0,0.00017448,2]
[401189686,1768031448104,-190.53827758,0.00017455,2]
[401189687,1768031448114,-196.55099073,0.00017455,2]
[401189688,1768031448124,-161.3110552,0.00017455,2]
[401189689,1768031448134,-150.0,0.00017455,2]
[401189690,1768031448143,-170.88856341,0.00017455,2]
[401189691,1768031448153,-150.0,0.00017458,2]
[401189692,1768031448163,-150.0,0.0001746,2]
[401189693,1768031448173,-150.0,0.00017468,2]
[401189694,1768031448182,-190.53827758,0.00017473,2]
[401189695,1768031448192,-196.55099073,0.00017473,2]
[401189696,1768031448202,-161.3110552,0.00017473,2]
[401189697,1768031448211,-170.88856341,0.00017473,2]
[401189698,1768031448221,-150.0,0.00017477,2]
[401189699,1768031448231,-150.0,0.0001748,2]
[401189700,1768031448241,-561.2,0.00017485,2]
[401189701,1768031448251,-150.0,0.00017489,2]
[401189702,1768031448260,-190.53827758,0.00017491,2]
[401189703,1768031448270,-196.55099073,0.00017491,2]
[401189704,1768031448279,-161.3110552,0.00017491,2]
[401189705,1768031448288,-170.88856341,0.00017491,2]
[401189706,1768031448299,-150.0,0.00017492,2]
[401189707,1768031448308,-150.0,0.00017497,2]
[401189708,1768031448317,-190.53827758,0.00017509,2]
[401189709,1768031448327,-196.55099073,0.00017509,2]
[401189710,1768031448336,-161.3110552,0.00017509,2]
[401189711,1768031448346,-150.0,0.00017509,2]
[401189712,1768031448359,-170.88856341,0.00017509,2]
[401189713,1768031448369,-150.0,0.00017509,2]
[401189714,1768031448379,-1712.34976734,0.00017511,2]
[401189715,1768031448388,-1908.19922497,0.00017511,2]
[401189716,1768031448398,-150.0,0.00017516,2]
[401189717,1768031448409,-150.0,0.0001752,2]
[401189718,1768031448418,-190.53827758,0.00017527,2]
[401189719,1768031448428,-196.55099073,0.00017527,2]
[401189720,1768031448437,-161.3110552,0.00017527,2]
[401189721,1768031448447,-170.88856341,0.00017527,2]
[401189722,1768031448457,-150.0,0.0001753,2]
[401189723,1768031448466,-600.0,0.00017534,2]
[401189724,1768031448475,-150.0,0.00017535,2]
[401189725,1768031448485,-150.0,0.00017538,2]
[401189726,1768031448494,-420.0,0.00017545,2]
[401189727,1768031448506,-190.53827758,0.00017545,2]
[401189728,1768031448517,-196.55099073,0.00017545,2]
[401189729,1768031448527,-161.3110552,0.00017545,2]
[401189730,1768031448537,-170.88856341,0.00017545,2]
[401189731,1768031448547,-150.0,0.0001755,2]
[401189732,1768031448557,-150.0,0.0001755,2]
[401189733,1768031448566,-150.0,0.0001755,2]
[401189734,1768031448576,-150.0,0.00017555,2]
[401189735,1768031448586,-561.2,0.00017558,2]
[401189736,1768031448595,-150.0,0.0001756,2]
[401189737,1768031448605,-190.53827758,0.00017564,2]
[401189738,1768031448615,-196.55099073,0.00017564,2]
[401189739,1768031448624,-161.3110552,0.00017564,2]
[401189740,1768031448634,-150.0,0.00017564,2]
[401189741,1768031448643,-170.88856341,0.00017564,2]
[401189742,1768031448653,-150.0,0.0001757,2]
[401189743,1768031448662,-150.0,0.00017574,2]
[401189744,1768031448671,-190.53827758,0.00017582,2]
[401189745,1768031448681,-196.55099073,0.00017582,2]
[401189746,1768031448691,-161.3110552,0.00017582,2]
[401189747,1768031448700,-170.88856341,0.00017582,2]
[401189748,1768031448710,-150.0,0.00017585,2]
[401189749,1768031448720,-150.0,0.00017591,2]
[401189750,1768031448729,-150.0,0.00017594,2]
[401189751,1768031448739,-170.32473985,0.00017594,2]
[401189752,1768031448748,-190.53827758,0.000176,2]
[401189753,1768031448757,-196.55099073,0.000176,2]
[401189754,1768031448767,-161.3110552,0.000176,2]
[401189755,1768031448776,-170.88856341,0.000176,2]
[401189756,1768031448786,-150.0,0.000176,2]
[401189757,1768031448796,-150.0,0.00017611,2]
[401189758,1768031448805,-150.0,0.00017613,2]
[401189759,1768031448815,-190.53827758,0.00017618,2]
[401189760,1768031448825,-196.55099073,0.00017618,2]
[401189761,1768031448834,-161.3110552,0.00017618,2]
[401189762,1768031448844,-150.0,0.00017618,2]
[401189763,1768031448853,-170.88856341,0.00017618,2]
[401189764,1768031448863,-271.0,0.00017628,2]
[401189765,1768031448872,-150.0,0.00017631,2]
[401189766,1768031448883,-150.0,0.00017632,2]
[401189767,1768031448892,-561.2,0.00017632,2]
[401189768,1768031448902,-150.0,0.00017632,2]
[401189769,1768031448911,-1680.0,0.00017633,2]
[401189770,1768031448921,-190.53827758,0.00017636,2]
[401189771,1768031448931,-196.55099073,0.00017636,2]
[401189772,1768031448940,-161.3110552,0.00017636,2]
[401189773,1768031448950,-170.88856341,0.00017636,2]
[401189774,1768031448959,-150.0,0.0001764,2]
[401189775,1768031448968,-150.0,0.0001764,2]
[401189776,1768031448978,-10537.80982193,0.0001764,2]
[401189777,1768031448987,-151.0,0.00017647,2]
[401189778,1768031448997,-187.78006525,0.00017647,2]
[401189779,1768031449007,-197.9969081,0.00017647,2]
[401189780,1768031449016,-514.84070869,0.00017647,2]
[401189781,1768031449026,-271.0,0.00017649,2]
[401189782,1768031449036,-150.0,0.00017652,2]
[401189783,1768031449046,-150.0,0.00017652,2]
[401189784,1768031449055,-190.53827758,0.00017655,2]
[401189785,1768031449066,-196.55099073,0.00017655,2]
[401189786,1768031449078,-161.3110552,0.00017655,2]
[401189787,1768031449088,-170.88856341,0.00017655,2]
[401189788,1768031449098,-433.0,0.00017659,2]
[401189789,1768031449107,-150.0,0.00017671,2]
[401189790,1768031449117,-190.53827758,0.00017673,2]
[401189791,1768031449127,-196.55099073,0.00017673,2]
[401189792,1768031449136,-161.3110552,0.00017673,2]
[401189793,1768031449146,-150.0,0.00017673,2]
[401189794,1768031449156,-170.88856341,0.00017673,2]
[401189795,1768031449167,-150.0,0.00017673,2]
[401189796,1768031449177,-150.0,0.00017677,2]
[401189797,1768031449187,-150.0,0.0001768,2]
[401189798,1768031449196,-150.0,0.0001769,2]
[401189799,1768031449206,-190.53827758,0.00017691,2]
[401189800,1768031449216,-196.55099073,0.00017691,2]
[401189801,1768031449225,-161.3110552,0.00017691,2]
[401189802,1768031449235,-170.88856341,0.00017691,2]
[401189803,1768031449245,-150.0,0.00017693,2]
[401189804,1768031449255,-963.69,0.00017696,2]
[401189805,1768031449264,-150.0,0.000177,2]
[401189806,1768031449274,-1000.0,0.000177,2]
[401189807,1768031449283,-561.2,0.00017705,2]
[401189808,1768031449294,-1712.34976734,0.00017706,2]
[401189809,1768031449303,-1908.19922497,0.00017706,2]
[401189810,1768031449312,-190.53827758,0.00017709,2]
[401189811,1768031449322,-196.55099073,0.00017709,2]
[401189812,1768031449332,-161.3110552,0.00017709,2]
[401189813,1768031449341,-170.88856341,0.00017709,2]
[401189814,1768031449351,-150.0,0.0001771,2]
[401189815,1768031449360,-150.0,0.00017714,2]
[401189816,1768031449370,-150.0,0.0001772,2]
[401189817,1768031449379,-433.0,0.00017722,2]
[401189818,1768031449389,-150.0,0.00017723,2]
[401189819,1768031449399,-190.53827758,0.00017727,2]
[401189820,1768031449408,-196.55099073,0.00017727,2]
[401189821,1768031449418,-161.3110552,0.00017727,2]
[401189822,1768031449428,-150.0,0.00017727,2]
[401189823,1768031449438,-170.88856341,0.00017727,2]
[401189824,1768031449448,-150.0,0.00017729,2]
[401189825,1768031449457,-150.0,0.0001773,2]
[401189826,1768031449467,-7554.21886386,0.0001773,2]
[401189827,1768031449477,-150.0,0.00017734,2]
[401189828,1768031449486,-190.53827758,0.00017745,2]
[401189829,1768031449496,-196.55099073,0.00017745,2]
[401189830,1768031449508,-161.3110552,0.00017745,2]
[401189831,1768031449518,-170.88856341,0.00017745,2]
[401189832,1768031449528,-150.0,0.00017748,2]
[401189833,1768031449537,-150.0,0.00017755,2]
[401189834,1768031449548,-150.0,0.0001776,2]
[401189835,1768031449558,-433.0,0.00017763,2]
[401189836,1768031449568,-190.53827758,0.00017764,2]
[401189837,1768031449578,-196.55099073,0.00017764,2]
[401189838,1768031449588,-161.3110552,0.00017764,2]
[401189839,1768031449598,-170.88856341,0.00017764,2]
[401189840,1768031449607,-150.0,0.00017768,2]
[401189841,1768031449617,-150.0,0.00017769,2]
[401189842,1768031449627,-271.0,0.00017774,2]
[401189843,1768031449637,-150.0,0.00017775,2]
[401189844,1768031449647,-561.2,0.00017779,2]
[401189845,1768031449656,-190.53827758,0.00017782,2]
[401189846,1768031449666,-196.55099073,0.00017782,2]
[401189847,1768031449675,-161.3110552,0.00017782,2]
[401189848,1768031449686,-150.0,0.00017782,2]
[401189849,1768031449696,-170.88856341,0.00017782,2]
[401189850,1768031449705,-150.0,0.00017787,2]
[401189851,1768031449715,-150.0,0.00017795,2]
[401189852,1768031449724,-190.53827758,0.000178,2]
[401189853,1768031449733,-196.55099073,0.000178,2]
[401189854,1768031449743,-161.3110552,0.000178,2]
[401189855,1768031449753,-170.88856341,0.000178,2]
[401189856,1768031449763,-150.0,0.000178,2]
[401189857,1768031449773,-150.0,0.00017806,2]
[401189858,1768031449783,-207.26988174,0.00017808,2]
[401189859,1768031449792,-500.0,0.00017808,2]
[401189860,1768031449801,-150.0,0.00017815,2]
[401189861,1768031449810,-150.0,0.00017816,2]
[401189862,1768031449820,-190.53827758,0.00017818,2]
[401189863,1768031449829,-196.55099073,0.00017818,2]
[401189864,1768031449839,-161.3110552,0.00017818,2]
[401189865,1768031449849,-170.88856341,0.00017818,2]
[401189866,1768031449858,-150.0,0.0001782,2]
[401189867,1768031449868,-159.35537069,0.0001782,2]
[401189868,1768031449879,-150.0,0.00017826,2]
[401189869,1768031449888,-190.53827758,0.00017836,2]
[401189870,1768031449897,-196.55099073,0.00017836,2]
[401189871,1768031449907,-161.3110552,0.00017836,2]
[401189872,1768031449918,-150.0,0.00017836,2]
[401189873,1768031449927,-170.88856341,0.00017836,2]
[401189874,1768031449936,-150.0,0.00017836,2]
[401189875,1768031449946,-152.0,0.00017838,3]